[Event "HUN-ch U8-U18 2019"]
[Site "Balatonlelle"]
[Date "2019.06.24"]
[Round "5.11"]
[White "Lakatos, Tamas"]
[Black "Blahota, Marcell"]
[Result "1-0"]
[ECO "B19"]
[WhiteElo "1833"]
[BlackElo "1793"]
[Annotator "NA"]
[PlyCount "107"]
[EventDate "2019.06.21"]
[EventType "swiss"]
[EventCountry "HUN"]
[SourceTitle "playchess.com"]
[Source "ChessBase"]
[SourceQuality "1"]
[TimeControl "40/5400+30:1800+30"]

1. e4 {[%emt 0:00:30]} c6 {[%emt 0:01:28]} 2. d4 {[%emt 0:00:16]} d5 {[%emt 0:00:17]} 3. Nc3 {[%emt 0:00:06]} dxe4 {[%emt 0:00:11]} 4. Nxe4 {[%emt 0:00:05]} Bf5 {[%emt 0:00:12]} 5. Ng3 {[%emt 0:00:03]} Bg6 {[%emt 0:00:07]} 6. Nf3 {[%emt 0:00:05]} Nd7 {[%emt 0:00:15]} 7. h4 {[%emt 0:00:03]} h6 {[%emt 0:00:55]} 8. h5 {[%emt 0:00:04]} Bh7 {[%emt 0:00:05]} 9. Bd3 {[%emt 0:00:01]} Bxd3 {[%emt 0:00:16]} 10. Qxd3 {[%emt 0:00:03]} e6 {[%emt 0:00:29]} 11. Bd2 {[%emt 0:00:10]} Ngf6 {[%emt 0:01:14]} 12. O-O-O {[%emt 0:00:06]} Be7 {[%emt 0:00:25]} 13. Ne4 {[%emt 0:00:14]} Qc7 {[%emt 0:00:53]} 14. Kb1 {[%emt 0:02:32]} O-O-O {[%emt 0:06:22]} 15. c3 {[%emt 0:05:22]} Nd5 {[%emt 0:18:01]} 16. c4 {[%emt 0:01:28]} N5f6 {[%emt 0:02:57]} 17. Be3 {[%emt 0:01:47]} Nxe4 {[%emt 0:10:42]} 18. Qxe4 {[%emt 0:00:17]} Nf6 {[%emt 0:00:11]} 19. Qc2 {[%emt 0:00:06]} Bd6 {[%emt 0:00:44]} 20. Qa4 {[%emt 0:00:45]} a6 {[%emt 0:07:52]} 21. Bd2 {[%emt 0:02:31]} Qe7 {[%emt 0:06:47]} 22. b4 {[%emt 0:03:02]} Kb8 {[%emt 0:10:58]} 23. Qb3 {[%emt 0:06:31]} Ne4 {[%emt 0:02:49]} 24. c5 {[%emt 0:00:40]} Bc7 {[%emt 0:01:56]} 25. Be3 {[%emt 0:00:30]} Qf6 {[%emt 0:03:43]} 26. a4 {[%emt 0:07:04]} Bf4 {[%emt 0:04:07]} 27. Qc2 {[%emt 0:21:04]} Qf5 {[%emt 0:01:27]} 28. Bxf4+ {[%emt 0:00:09]} Qxf4 {[%emt 0:00:31]} 29. Rh4 {[%emt 0:00:07]} Qf6 {[%emt 0:09:02]} 30. Qxe4 {[%emt 0:00:10]} Rd5 {[%emt 0:00:20]} 31. Qf4+ {[%emt 0:00:17]} Qxf4 {[%emt 0:00:36]} 32. Rxf4 {[%emt 0:00:03]} f6 {[%emt 0:00:36]} 33. Re1 {[%emt 0:01:24]} Rxh5 {[%emt 0:01:50]} 34. Rxe6 {[%emt 0:00:12]} Rh1+ {[%emt 0:00:17]} 35. Kb2 {[%emt 0:00:06]} Rf1 {[%emt 0:00:13]} 36. Re2 {[%emt 0:00:45]} Rd8 {[%emt 0:02:00]} 37. Rfe4 {[%emt 0:00:12]} g5 {[%emt 0:00:59]} 38. Re8 {[%emt 0:00:40]} Rxe8 {[%emt 0:00:31]} 39. Rxe8+ {[%emt 0:00:04]} Kc7 {[%emt 0:00:04]} 40. Re2 {[%emt 0:00:00]} h5 {[%emt 0:00:00]} 41. Nd2 {[%emt 0:00:21]} Rg1 {[%emt 0:01:55]} 42. g3 {[%emt 0:00:15]} h4 {[%emt 0:01:53]} 43. gxh4 {[%emt 0:06:19]} gxh4 {[%emt 0:00:28]} 44. Re7+ {[%emt 0:00:06]} Kc8 {[%emt 0:00:21]} 45. Rh7 {[%emt 0:00:07]} Rg4 {[%emt 0:07:27]} 46. Kc3 {[%emt 0:00:33]} f5 {[%emt 0:02:25]} 47. f3 {[%emt 0:00:03]} Rg1 {[%emt 0:00:41]} 48. Rxh4 {[%emt 0:00:03]} Rc1+ {[%emt 0:02:00]} 49. Kb2 {[%emt 0:00:11]} Rd1 {[%emt 0:00:20]} 50. Kc2 {[%emt 0:00:06]} Ra1 {[%emt 0:00:42]} 51. Rf4 {[%emt 0:00:13]} Ra2+ {[%emt 0:01:15]} 52. Kc3 {[%emt 0:00:04]} Rxa4 {[%emt 0:01:45]} 53. Nc4 {[%emt 0:00:07]} Ra1 {[%emt 0:00:18]} 54. Rxf5 {[%emt 0:00:13]} 1-0

[Event "HUN-ch U8-U18 2019"]
[Site "Balatonlelle"]
[Date "2019.06.24"]
[Round "5.12"]
[White "Kratzmajer, Akos Gyorgy"]
[Black "Forgacs, Andras"]
[Result "1-0"]
[ECO "B18"]
[WhiteElo "2048"]
[BlackElo "1873"]
[Annotator "NA"]
[PlyCount "59"]
[EventDate "2019.06.21"]
[EventType "swiss"]
[EventCountry "HUN"]
[SourceTitle "playchess.com"]
[Source "ChessBase"]
[SourceQuality "1"]
[TimeControl "40/5400+30:1800+30"]

1. e4 {[%emt 0:00:01]} c6 {[%emt 0:00:38]} 2. d4 {[%emt 0:00:04]} d5 {[%emt 0:00:06]} 3. Nc3 {[%emt 0:00:01]} dxe4 {[%emt 0:00:05]} 4. Nxe4 {[%emt 0:00:02]} Bf5 {[%emt 0:00:09]} 5. Ng3 {[%emt 0:00:02]} Bg6 {[%emt 0:00:05]} 6. Nh3 {[%emt 0:00:03]} e6 {[%emt 0:00:04]} 7. Nf4 {[%emt 0:00:02]} Bd6 {[%emt 0:00:21]} 8. Nfh5 {[%emt 0:00:03]} Bxg3 {[%emt 0:00:37]} 9. hxg3 {[%emt 0:00:07]} Bxh5 {[%emt 0:00:47]} 10. Rxh5 {[%emt 0:00:04]} Nf6 {[%emt 0:00:07]} 11. Rh4 {[%emt 0:00:03]} Qa5+ {[%emt 0:00:46]} 12. c3 {[%emt 0:01:11]} Nd5 {[%emt 0:01:47]} 13. Bd2 {[%emt 0:04:45]} Qb6 {[%emt 0:00:14]} 14. Qc2 {[%emt 0:00:39]} Nf6 {[%emt 0:00:58]} 15. Bd3 {[%emt 0:01:14]} g6 {[%emt 0:00:45]} 16. Bg5 {[%emt 0:03:50]} Nbd7 {[%emt 0:01:08]} 17. Qd2 {[%emt 0:09:25]} Qa5 {[%emt 0:01:02]} 18. O-O-O {[%emt 0:26:23]} Qxa2 {[%emt 0:07:51]} 19. Qf4 {[%emt 0:02:22]} Nd5 {[%emt 0:01:11]} 20. Qd6 {[%emt 0:00:08]} Qa1+ {[%emt 0:02:30]} 21. Bb1 {[%emt 0:00:38]} f6 {[%emt 0:00:26]} 22. Qxe6+ {[%emt 0:16:49]} Kd8 {[%emt 0:00:08]} 23. Bd2 {[%emt 0:00:23]} N7b6 {[%emt 0:03:50]} 24. Rxh7 {[%emt 0:04:11]} Rxh7 {[%emt 0:01:24]} 25. Qg8+ {[%emt 0:00:06]} Kd7 {[%emt 0:00:06]} 26. Qxh7+ {[%emt 0:00:05]} Kd6 {[%emt 0:00:20]} 27. Bf4+ {[%emt 0:09:19]} Nxf4 {[%emt 0:00:19]} 28. gxf4 {[%emt 0:00:04]} Nc4 {[%emt 0:00:15]} 29. Qxb7 {[%emt 0:00:14]} a5 {[%emt 0:01:32]} 30. d5 {[%emt 0:00:45] Kxd5} 1-0

[Event "HUN-ch U8-U18 2019"]
[Site "Balatonlelle"]
[Date "2019.06.24"]
[Round "5.12"]
[White "Petervari, Szabolcs"]
[Black "Daroczi, Donat"]
[Result "0-1"]
[ECO "C07"]
[WhiteElo "1816"]
[BlackElo "2050"]
[Annotator "NA"]
[PlyCount "56"]
[EventDate "2019.06.21"]
[EventType "swiss"]
[EventCountry "HUN"]
[SourceTitle "playchess.com"]
[Source "ChessBase"]
[SourceQuality "1"]
[TimeControl "40/5400+30:1800+30"]

1. e4 {[%emt 0:00:03]} e6 {[%emt 0:00:28]} 2. d4 {[%emt 0:00:21]} d5 {[%emt 0:00:04]} 3. Nd2 {[%emt 0:00:56]} c5 {[%emt 0:00:09]} 4. c3 {[%emt 0:00:41]} Nc6 {[%emt 0:05:22]} 5. Bb5 {[%emt 0:05:06]} Nf6 {[%emt 0:02:18]} 6. e5 {[%emt 0:00:14]} Nd7 {[%emt 0:00:04]} 7. Bxc6 {[%emt 0:07:46]} bxc6 {[%emt 0:00:15]} 8. f4 {[%emt 0:00:29]} a5 {[%emt 0:03:00]} 9. Qa4 {[%emt 0:05:49]} Qb6 {[%emt 0:17:21]} 10. Ngf3 {[%emt 0:10:48]} Ba6 {[%emt 0:00:49]} 11. Kf2 {[%emt 0:04:05]} cxd4 {[%emt 0:08:04]} 12. Nxd4 {[%emt 0:00:23]} c5 {[%emt 0:06:00]} 13. N4f3 {[%emt 0:01:32]} Bb5 {[%emt 0:14:28]} 14. Qc2 {[%emt 0:05:26]} f6 {[%emt 0:04:41]} 15. Re1 {[%emt 0:04:09]} f5 {[%emt 0:00:45]} 16. Kg1 {[%emt 0:02:00]} Be7 {[%emt 0:01:21]} 17. c4 {[%emt 0:06:33]} Bc6 {[%emt 0:01:50]} 18. cxd5 {[%emt 0:03:49]} Bxd5 {[%emt 0:00:01]} 19. Kh1 {[%emt 0:01:58]} O-O {[%emt 0:00:56]} 20. Qa4 {[%emt 0:08:25]} Qb7 {[%emt 0:00:45]} 21. Qc2 {[%emt 0:03:47]} Rfd8 {[%emt 0:02:04]} 22. b3 {[%emt 0:02:16]} Nb8 {[%emt 0:01:01]} 23. Bb2 {[%emt 0:00:57]} Nc6 {[%emt 0:01:04]} 24. Bc3 {[%emt 0:00:01]} Nd4 {[%emt 0:01:56]} 25. Bxd4 {[%emt 0:00:20]} cxd4 {[%emt 0:00:03]} 26. Qd3 {[%emt 0:05:10]} Bb4 {[%emt 0:01:39]} 27. Re2 {[%emt 0:01:49]} Rac8 {[%emt 0:01:19]} 28. Nxd4 {[%emt 0:03:39]} Bc3 {[%emt 0:02:02]} 0-1

[Event "HUN-ch U8-U18 2019"]
[Site "Balatonlelle"]
[Date "2019.06.24"]
[Round "5.13"]
[White "Miszler, Levente"]
[Black "Papp, Levente"]
[Result "0-1"]
[ECO "A14"]
[WhiteElo "2041"]
[BlackElo "2350"]
[Annotator "NA"]
[PlyCount "114"]
[EventDate "2019.06.21"]
[EventType "swiss"]
[EventCountry "HUN"]
[SourceTitle "playchess.com"]
[Source "ChessBase"]
[SourceQuality "1"]
[TimeControl "40/5400+30:1800+30"]

1. Nf3 {[%emt 0:00:03]} d5 {[%emt 0:01:07]} 2. c4 {[%emt 0:00:09]} e6 {[%emt 0:00:22]} 3. g3 {[%emt 0:00:16]} Nf6 {[%emt 0:00:09]} 4. Bg2 {[%emt 0:00:08]} Be7 {[%emt 0:00:19]} 5. O-O {[%emt 0:00:18]} O-O {[%emt 0:00:14]} 6. d4 {[%emt 0:00:09]} c6 {[%emt 0:01:48]} 7. Nc3 {[%emt 0:00:38]} Nbd7 {[%emt 0:00:14]} 8. b3 {[%emt 0:02:51]} Qa5 {[%emt 0:02:23]} 9. Qc2 {[%emt 0:01:12]} b5 {[%emt 0:07:34]} 10. Bd2 {[%emt 0:05:24]} b4 {[%emt 0:12:04]} 11. Na4 {[%emt 0:06:53]} Ne4 {[%emt 0:04:57]} 12. Nb2 {[%emt 0:12:53]} Ba6 {[%emt 0:14:13]} 13. a3 {[%emt 0:07:35]} Nxd2 {[%emt 0:00:10]} 14. Qxd2 {[%emt 0:00:29]} Qb6 {[%emt 0:02:06]} 15. axb4 {[%emt 0:02:22]} Bxb4 {[%emt 0:00:08]} 16. Qc2 {[%emt 0:00:17]} Be7 {[%emt 0:01:11]} 17. Nd3 {[%emt 0:08:09]} Bb7 {[%emt 0:03:53]} 18. e3 {[%emt 0:03:15]} Rfc8 {[%emt 0:03:48]} 19. c5 {[%emt 0:04:46]} Qc7 {[%emt 0:00:52]} 20. Ra4 {[%emt 0:01:00]} a5 {[%emt 0:04:41]} 21. Rfa1 {[%emt 0:01:52]} Bd8 {[%emt 0:03:01]} 22. b4 {[%emt 0:04:37]} axb4 {[%emt 0:00:05]} 23. Nxb4 {[%emt 0:00:14]} Rxa4 {[%emt 0:00:11]} 24. Rxa4 {[%emt 0:00:12]} Ra8 {[%emt 0:00:05]} 25. Bf1 {[%emt 0:01:06]} Rxa4 {[%emt 0:03:34]} 26. Qxa4 {[%emt 0:00:21]} Qa5 {[%emt 0:00:03]} 27. Qxa5 {[%emt 0:00:59]} Bxa5 {[%emt 0:00:34]} 28. Nd3 {[%emt 0:01:57]} f6 {[%emt 0:00:52]} 29. h4 {[%emt 0:05:11]} Kf7 {[%emt 0:01:13]} 30. Bh3 {[%emt 0:05:19]} Ba6 {[%emt 0:00:26]} 31. Nf4 {[%emt 0:00:35]} Nf8 {[%emt 0:00:01]} 32. Bf1 {[%emt 0:05:00]} Bb7 {[%emt 0:00:02]} 33. Bd3 {[%emt 0:01:19]} Bc7 {[%emt 0:05:18]} 34. Nd2 {[%emt 0:02:05]} e5 {[%emt 0:03:42]} 35. Ne2 {[%emt 0:03:48]} h5 {[%emt 0:13:21]} 36. Nb3 {[%emt 0:02:10]} e4 {[%emt 0:01:02]} 37. Bc2 {[%emt 0:00:31]} g5 {[%emt 0:00:04]} 38. hxg5 {[%emt 0:01:22]} fxg5 {[%emt 0:00:01]} 39. Kg2 {[%emt 0:00:44]} Nd7 {[%emt 0:04:38]} 40. Bd1 {[%emt 0:00:00]} Nf6 {[%emt 0:00:00]} 41. Nc3 {[%emt 0:04:17]} Bc8 {[%emt 0:03:59]} 42. Na4 {[%emt 0:02:59]} h4 {[%emt 0:00:17]} 43. Nb6 {[%emt 0:01:50]} h3+ {[%emt 0:00:15]} 44. Kh2 {[%emt 0:00:29]} Bg4 {[%emt 0:00:04]} 45. Bc2 {[%emt 0:02:21]} Bf3 {[%emt 0:02:14]} 46. Kxh3 {[%emt 0:01:33]} Ng4 {[%emt 0:00:05]} 47. Na5 {[%emt 0:00:32]} Nxf2+ {[%emt 0:00:06]} 48. Kh2 {[%emt 0:00:03]} Ng4+ {[%emt 0:00:08]} 49. Kg1 {[%emt 0:01:42]} Bxg3 {[%emt 0:00:14]} 50. Bb3 {[%emt 0:00:56]} Bh2+ {[%emt 0:00:31]} 51. Kf1 {[%emt 0:00:19]} Nxe3+ {[%emt 0:00:05]} 52. Ke1 {[%emt 0:01:50]} Ng2+ {[%emt 0:02:20]} 53. Kf2 {[%emt 0:00:22]} g4 {[%emt 0:00:04]} 54. Bxd5+ {[%emt 0:01:39]} cxd5 {[%emt 0:00:10]} 55. Nxd5 {[%emt 0:00:05]} g3+ {[%emt 0:00:19]} 56. Kf1 {[%emt 0:00:15]} e3 {[%emt 0:00:03]} 57. Nc4 {[%emt 0:00:24]} e2# {[%emt 0:00:05]} 0-1

[Event "HUN-ch U8-U18 2019"]
[Site "Balatonlelle"]
[Date "2019.06.24"]
[Round "5.13"]
[White "Gyenes, Mate"]
[Black "Bilku, Andras"]
[Result "1-0"]
[ECO "A45"]
[WhiteElo "1823"]
[BlackElo "1907"]
[Annotator "NA"]
[PlyCount "67"]
[EventDate "2019.06.21"]
[EventType "swiss"]
[EventCountry "HUN"]
[SourceTitle "playchess.com"]
[Source "ChessBase"]
[SourceQuality "1"]
[TimeControl "40/5400+30:1800+30"]

1. d4 {[%emt 0:00:03]} Nf6 {[%emt 0:00:06]} 2. Bf4 {[%emt 0:00:13]} e6 {[%emt 0:00:43]} 3. e3 {[%emt 0:00:10]} d5 {[%emt 0:00:34]} 4. Nf3 {[%emt 0:00:19]} Nbd7 {[%emt 0:00:34]} 5. Nbd2 {[%emt 0:00:24]} c5 {[%emt 0:00:35]} 6. c3 {[%emt 0:00:07]} b6 {[%emt 0:00:06]} 7. Ne5 {[%emt 0:00:10]} Nxe5 {[%emt 0:00:45]} 8. dxe5 {[%emt 0:00:08]} Nd7 {[%emt 0:00:55]} 9. Bd3 {[%emt 0:00:10]} Bb7 {[%emt 0:04:35]} 10. a4 {[%emt 0:00:32]} a6 {[%emt 0:02:30]} 11. Nf3 {[%emt 0:00:10]} Be7 {[%emt 0:00:22]} 12. h4 {[%emt 0:02:30]} h6 {[%emt 0:00:38]} 13. h5 {[%emt 0:00:10]} Qc7 {[%emt 0:01:22]} 14. Rc1 {[%emt 0:00:13]} Bc6 {[%emt 0:02:49]} 15. O-O {[%emt 0:01:32]} c4 {[%emt 0:10:20]} 16. Bc2 {[%emt 0:00:06]} Nc5 {[%emt 0:00:23]} 17. Nd4 {[%emt 0:00:20]} Qd7 {[%emt 0:00:48]} 18. Ra1 {[%emt 0:00:09]} Bb7 {[%emt 0:08:11]} 19. Qg4 {[%emt 0:01:53]} Kf8 {[%emt 0:02:36]} 20. Bh2 {[%emt 0:04:12]} f5 {[%emt 0:11:22]} 21. Qg6 {[%emt 0:01:53]} Bc8 {[%emt 0:00:12]} 22. g4 {[%emt 0:01:48]} fxg4 {[%emt 0:03:16]} 23. f4 {[%emt 0:01:59]} Qe8 {[%emt 0:01:53]} 24. Qxg4 {[%emt 0:00:36]} Kg8 {[%emt 0:01:50]} 25. Bg6 {[%emt 0:02:03]} Qd7 {[%emt 0:02:30]} 26. f5 {[%emt 0:06:22]} exf5 {[%emt 0:00:25]} 27. Rxf5 {[%emt 0:01:16]} Bg5 {[%emt 0:00:30]} 28. Raf1 {[%emt 0:01:24]} Bb7 {[%emt 0:00:28]} 29. Bf7+ {[%emt 0:00:15]} Kh7 {[%emt 0:00:12]} 30. e6 {[%emt 0:05:39]} Qe7 {[%emt 0:02:06]} 31. Re5 {[%emt 0:01:28]} Rhf8 {[%emt 0:00:52]} 32. Nf5 {[%emt 0:02:19]} Qf6 {[%emt 0:01:15]} 33. Nh4 {[%emt 0:00:39]} Bxe3+ {[%emt 0:00:36]} 34. Rxe3 {[%emt 0:00:43]} 1-0

[Event "HUN-ch U8-U18 2019"]
[Site "Balatonlelle"]
[Date "2019.06.24"]
[Round "5.14"]
[White "Vanczak, Tamas"]
[Black "Udvardi, Zalan"]
[Result "1/2-1/2"]
[ECO "A45"]
[WhiteElo "2311"]
[BlackElo "2211"]
[Annotator "NA"]
[PlyCount "50"]
[EventDate "2019.06.21"]
[EventType "swiss"]
[EventCountry "HUN"]
[SourceTitle "playchess.com"]
[Source "ChessBase"]
[SourceQuality "1"]
[TimeControl "40/5400+30:1800+30"]

1. d4 {[%emt 0:00:16]} Nf6 {[%emt 0:00:26]} 2. Bf4 {[%emt 0:00:30]} d5 {[%emt 0:00:16]} 3. e3 {[%emt 0:00:15]} c5 {[%emt 0:00:18]} 4. c3 {[%emt 0:00:13]} Nc6 {[%emt 0:00:30]} 5. Nd2 {[%emt 0:00:22]} Bf5 {[%emt 0:07:22]} 6. Qb3 {[%emt 0:01:26]} Qb6 {[%emt 0:01:21]} 7. dxc5 {[%emt 0:01:28]} Qxb3 {[%emt 0:00:09]} 8. axb3 {[%emt 0:00:12]} e5 {[%emt 0:00:48]} 9. Bg3 {[%emt 0:00:29]} Bxc5 {[%emt 0:00:30]} 10. Ngf3 {[%emt 0:02:16]} Nd7 {[%emt 0:11:01]} 11. b4 {[%emt 0:04:09]} Bd6 {[%emt 0:00:17]} 12. Bb5 {[%emt 0:03:35]} Ke7 {[%emt 0:04:31]} 13. O-O {[%emt 0:03:01]} f6 {[%emt 0:09:17]} 14. Rfe1 {[%emt 0:01:52]} Rhc8 {[%emt 0:28:02]} 15. Rad1 {[%emt 0:08:02]} a5 {[%emt 0:05:29]} 16. e4 {[%emt 0:06:12]} Bxe4 {[%emt 0:00:46]} 17. Nxe4 {[%emt 0:00:19]} dxe4 {[%emt 0:00:04]} 18. Nd2 {[%emt 0:04:17]} axb4 {[%emt 0:03:52]} 19. Nxe4 {[%emt 0:02:17]} Bc7 {[%emt 0:02:18]} 20. cxb4 {[%emt 0:01:18]} Nf8 {[%emt 0:06:47]} 21. f4 {[%emt 0:03:45]} Rd8 {[%emt 0:05:11]} 22. fxe5 {[%emt 0:19:32]} Bxe5 {[%emt 0:05:25]} 23. Bf2 {[%emt 0:02:43]} Rxd1 {[%emt 0:01:20]} 24. Rxd1 {[%emt 0:01:51]} Ne6 {[%emt 0:00:17]} 25. Nc5 {[%emt 0:04:21]} Rd8 {[%emt 0:01:06]} 1/2-1/2

[Event "HUN-ch U8-U18 2019"]
[Site "Balatonlelle"]
[Date "2019.06.24"]
[Round "5.14"]
[White "Csidey, Csongor"]
[Black "Barsi, Botond"]
[Result "1-0"]
[ECO "B20"]
[WhiteElo "1708"]
[BlackElo "1850"]
[Annotator "NA"]
[PlyCount "59"]
[EventDate "2019.06.21"]
[EventType "swiss"]
[EventCountry "HUN"]
[SourceTitle "playchess.com"]
[Source "ChessBase"]
[SourceQuality "1"]
[TimeControl "40/5400+30:1800+30"]

1. e4 {[%emt 0:00:02]} c5 {[%emt 0:00:07]} 2. c4 {[%emt 0:00:03]} Nc6 {[%emt 0:00:04]} 3. Nc3 {[%emt 0:00:06]} g6 {[%emt 0:00:04]} 4. g3 {[%emt 0:00:04]} Bg7 {[%emt 0:00:09]} 5. Bg2 {[%emt 0:00:04]} d6 {[%emt 0:00:25]} 6. Nge2 {[%emt 0:00:09]} a6 {[%emt 0:00:13]} 7. O-O {[%emt 0:00:06]} Rb8 {[%emt 0:00:05]} 8. a4 {[%emt 0:00:17]} Nf6 {[%emt 0:00:07]} 9. d3 {[%emt 0:00:12]} O-O {[%emt 0:00:53]} 10. h3 {[%emt 0:00:47]} Bd7 {[%emt 0:00:27]} 11. Be3 {[%emt 0:00:47]} Nb4 {[%emt 0:05:03]} 12. Qd2 {[%emt 0:15:43]} Qe8 {[%emt 0:05:47]} 13. e5 {[%emt 0:07:33]} dxe5 {[%emt 0:04:47]} 14. Bxc5 {[%emt 0:00:20]} Nc6 {[%emt 0:00:23]} 15. Rae1 {[%emt 0:08:52]} Bf5 {[%emt 0:03:45]} 16. f4 {[%emt 0:03:46]} Rd8 {[%emt 0:19:21]} 17. Nd5 {[%emt 0:05:22]} e6 {[%emt 0:30:46]} 18. Bxf8 {[%emt 0:06:27]} Qxf8 {[%emt 0:00:49]} 19. Nxf6+ {[%emt 0:05:22]} Bxf6 {[%emt 0:02:12]} 20. Nc1 {[%emt 0:02:12]} Qc5+ {[%emt 0:03:24]} 21. Kh2 {[%emt 0:02:30]} Qxc4 {[%emt 0:03:46]} 22. Rd1 {[%emt 0:12:42]} Bxd3 {[%emt 0:12:36]} 23. Nxd3 {[%emt 0:01:30]} e4 {[%emt 0:00:14]} 24. Ne5 {[%emt 0:03:11]} Nxe5 {[%emt 0:05:48]} 25. Qxd8+ {[%emt 0:00:14]} Bxd8 {[%emt 0:00:30]} 26. Rxd8+ {[%emt 0:00:10]} Kg7 {[%emt 0:00:00]} 27. fxe5 {[%emt 0:00:18]} Qxa4 {[%emt 0:00:00]} 28. Rf4 {[%emt 0:01:47]} Qb5 {[%emt 0:00:45]} 29. Rxe4 {[%emt 0:00:41]} Qxb2 {[%emt 0:00:30]} 30. Rd7 {[%emt 0:00:36]} 1-0

[Event "HUN-ch U8-U18 2019"]
[Site "Balatonlelle"]
[Date "2019.06.24"]
[Round "5.15"]
[White "Bohus, Adam"]
[Black "Kokeny, Norbert Adrian"]
[Result "0-1"]
[ECO "B32"]
[WhiteElo "2196"]
[BlackElo "2268"]
[Annotator "NA"]
[PlyCount "73"]
[EventDate "2019.06.21"]
[EventType "swiss"]
[EventCountry "HUN"]
[SourceTitle "playchess.com"]
[Source "ChessBase"]
[SourceQuality "1"]
[TimeControl "40/5400+30:1800+30"]

1. e4 {[%emt 0:00:06]} c5 {[%emt 0:01:37]} 2. Nf3 {[%emt 0:00:12]} Nc6 {[%emt 0:01:18]} 3. d4 {[%emt 0:00:17]} cxd4 {[%emt 0:00:20]} 4. Nxd4 {[%emt 0:00:11]} Qb6 {[%emt 0:02:25]} 5. Nb3 {[%emt 0:01:26]} Nf6 {[%emt 0:00:56]} 6. Nc3 {[%emt 0:00:12]} e6 {[%emt 0:02:56]} 7. Bg5 {[%emt 0:21:44]} Be7 {[%emt 0:02:36]} 8. Qd2 {[%emt 0:04:55]} a6 {[%emt 0:02:37]} 9. f4 {[%emt 0:01:21]} d6 {[%emt 0:03:49]} 10. O-O-O {[%emt 0:01:30]} Qc7 {[%emt 0:01:48]} 11. Be2 {[%emt 0:07:01]} b5 {[%emt 0:01:15]} 12. Bxf6 {[%emt 0:03:08]} gxf6 {[%emt 0:00:32]} 13. f5 {[%emt 0:01:11]} b4 {[%emt 0:02:07]} 14. Na4 {[%emt 0:16:05]} e5 {[%emt 0:02:01]} 15. c4 {[%emt 0:15:06]} Bd7 {[%emt 0:04:23]} 16. Kb1 {[%emt 0:05:39]} a5 {[%emt 0:08:27]} 17. c5 {[%emt 0:03:08]} dxc5 {[%emt 0:01:31]} 18. Qd5 {[%emt 0:10:00]} Rd8 {[%emt 0:02:31]} 19. Naxc5 {[%emt 0:02:05]} Bxf5 {[%emt 0:06:37]} 20. Qc4 {[%emt 0:00:06]} Bc8 {[%emt 0:02:14]} 21. Qb5 {[%emt 0:03:09]} O-O {[%emt 0:01:17]} 22. Rd3 {[%emt 0:01:11]} Rxd3 {[%emt 0:02:43]} 23. Qxd3 {[%emt 0:00:03]} Rd8 {[%emt 0:01:11]} 24. Qg3+ {[%emt 0:00:44]} Kh8 {[%emt 0:00:22]} 25. Rc1 {[%emt 0:00:49]} Qa7 {[%emt 0:03:07]} 26. Bh5 {[%emt 0:01:07]} a4 {[%emt 0:02:34]} 27. Nxa4 {[%emt 0:00:32]} Qxa4 {[%emt 0:00:24]} 28. Bxf7 {[%emt 0:00:07]} Bb7 {[%emt 0:11:08]} 29. Qh4 {[%emt 0:00:27]} Kg7 {[%emt 0:04:15]} 30. Bd5 {[%emt 0:00:02]} Ra8 {[%emt 0:10:27]} 31. Qg4+ {[%emt 0:01:00]} Kh8 {[%emt 0:00:51]} 32. Nc5 {[%emt 0:00:53]} Bxc5 {[%emt 0:02:31]} 33. Rxc5 {[%emt 0:00:02]} b3 {[%emt 0:01:48]} 34. Bxb3 {[%emt 0:00:30]} Qb4 {[%emt 0:01:58]} 35. Rc3 {[%emt 0:00:56]} Na5 {[%emt 0:01:34]} 36. Bc2 {[%emt 0:00:33]} Nc4 {[%emt 0:00:25]} 37. Rb3 {time} 0-1

[Event "HUN-ch U8-U18 2019"]
[Site "Balatonlelle"]
[Date "2019.06.24"]
[Round "5.15"]
[White "Pervai, Laszlo"]
[Black "Kun, Balint"]
[Result "1-0"]
[ECO "C01"]
[WhiteElo "2033"]
[BlackElo "1813"]
[Annotator "NA"]
[PlyCount "70"]
[EventDate "2019.06.21"]
[EventType "swiss"]
[EventCountry "HUN"]
[SourceTitle "playchess.com"]
[Source "ChessBase"]
[SourceQuality "1"]
[TimeControl "40/5400+30:1800+30"]

1. e4 {[%emt 0:00:03]} e6 {[%emt 0:00:03]} 2. d4 {[%emt 0:00:10]} d5 {[%emt 0:00:02]} 3. Nc3 {[%emt 0:00:06]} Nf6 {[%emt 0:00:04]} 4. exd5 {[%emt 0:00:16]} exd5 {[%emt 0:00:05]} 5. Bg5 {[%emt 0:00:09]} Be7 {[%emt 0:00:04]} 6. Bd3 {[%emt 0:00:46]} Nc6 {[%emt 0:00:08]} 7. Nge2 {[%emt 0:00:31]} Nb4 {[%emt 0:00:07]} 8. f3 {[%emt 0:00:50]} Nxd3+ {[%emt 0:02:01]} 9. Qxd3 {[%emt 0:00:07]} c6 {[%emt 0:00:20]} 10. O-O-O {[%emt 0:00:36]} b5 {[%emt 0:02:02]} 11. Ng3 {[%emt 0:01:18]} O-O {[%emt 0:00:41]} 12. Nf5 {[%emt 0:00:24]} Bxf5 {[%emt 0:00:50]} 13. Qxf5 {[%emt 0:00:08]} a5 {[%emt 0:04:00]} 14. h4 {[%emt 0:07:46]} a4 {[%emt 0:05:03]} 15. g4 {[%emt 0:06:06]} b4 {[%emt 0:01:06]} 16. Nb1 {[%emt 0:00:10]} b3 {[%emt 0:02:17]} 17. axb3 {[%emt 0:00:51]} axb3 {[%emt 0:00:09]} 18. c3 {[%emt 0:00:04]} Re8 {[%emt 0:13:51]} 19. Rde1 {[%emt 0:04:13]} Nd7 {[%emt 0:19:57]} 20. Bxe7 {[%emt 0:03:39]} Rxe7 {[%emt 0:00:49]} 21. Qg5 {[%emt 0:04:59]} f6 {[%emt 0:09:04]} 22. Qd2 {[%emt 0:00:30]} Nb6 {[%emt 0:03:45]} 23. Rxe7 {[%emt 0:02:05]} Qxe7 {[%emt 0:01:03]} 24. Re1 {[%emt 0:00:07]} Qc7 {[%emt 0:00:21]} 25. Na3 {[%emt 0:12:40]} Nc4 {[%emt 0:21:55]} 26. Qe2 {[%emt 0:01:42]} Qd6 {[%emt 0:05:29]} 27. Nxc4 {[%emt 0:05:18]} dxc4 {[%emt 0:00:06]} 28. Qe6+ {[%emt 0:04:27]} Qxe6 {[%emt 0:00:05]} 29. Rxe6 {[%emt 0:00:06]} Rc8 {[%emt 0:00:03]} 30. Re7 {[%emt 0:00:41]} c5 {[%emt 0:02:14]} 31. Kd2 {[%emt 0:02:37]} cxd4 {[%emt 0:03:40]} 32. cxd4 {[%emt 0:00:08]} c3+ {[%emt 0:00:02]} 33. bxc3 {[%emt 0:00:40]} Rb8 {[%emt 0:00:20]} 34. Re1 {[%emt 0:00:28]} Kf7 {[%emt 0:00:29]} 35. Rb1 {[%emt 0:00:11]} Ke6 {[%emt 0:01:32]} 1-0